Cogmind - Beta 12 @@@ ROGUE MODE // 2023.05.24 @ 21:40:50 Player: snowphil Result: Smashed by cave-in Performance ------------- Evolutions (0) 0 Regions Visited (2) 400 Robots Destroyed (18) 90 Value Destroyed (442) 442 Prototype IDs (4) 80 Alien Tech Used (0) 0 Bonus (0) 0 TOTAL SCORE: 1012 Bonus ------- None Cogmind --------- Core Integrity 0/250 Matter 256/300 Energy 121/125 System Corruption 2% Temperature Cool (31) Movement Walking (120) Location -10/Mines Parts ------- > --- POWER (1) -------- Light Ion Engine > --- PROPULSION (2) --- Aluminum Leg Aluminum Leg > --- UTILITY (2) ------ Small Storage Unit Visual Processing Unit > --- WEAPON (2) ------- Mining Claw > --- INVENTORY (8) ---- Improved Heat Sink Light Armor Plating Grenade Launcher Peak State ------------ > --- POWER ------------ Light Nuclear Core > --- PROPULSION ------- Aluminum Leg Aluminum Leg > --- UTILITY ---------- Small Storage Unit Visual Processing Unit > --- WEAPON ----------- Small Laser Particle Gun > --- INVENTORY -------- Light Ion Engine Aluminum Leg Hover Unit Improved Heat Sink Light Armor Plating Assault Rifle Grenade Launcher Mining Claw [Rating: 12] Favorites ----------- Power Light Ion Engine Engine Light Ion Engine Power Core Light Nuclear Core Propulsion Aluminum Leg Leg Aluminum Leg Hover Unit Hover Unit Utility Small Storage Unit Storage Small Storage Unit Processor Visual Processing Unit Weapon Small Laser Energy Gun Small Laser Ballistic Gun Light Assault Rifle Slashing Weapon Mining Claw Build | -11 -10 -10 ------- Run | Jun Mat Min Slots Evolved . | . . . Power . | . . . Propulsion . | . . . Utility . | . . . Weapon . | . . . Parts Attached 28 | 6 17 5 Power 4 | 1 2 1 Engine 3 | 1 1 1 Core 1 | . 1 . Reactor . | . . . Propulsion 11 | 2 7 2 Treads . | . . . Leg 9 | 2 5 2 Wheel . | . . . Hover 2 | . 2 . Flight . | . . . Utility 2 | 1 1 . Device . | . . . Storage 1 | 1 . . Processor 1 | . 1 . Hackware . | . . . Protection . | . . . Artifact . | . . . Weapon 11 | 2 7 2 Energy Gun 7 | 1 5 1 Energy Cannon . | . . . Ballistic Gun 2 | 1 1 . Ballistic Cannon . | . . . Launcher . | . . . Special Weapon . | . . . Impact Weapon . | . . . Slashing Weapon 2 | . 1 1 Piercing Weapon . | . . . Special Melee Weapon . | . . . Unidentified Prototypes . | . . . Parts Lost 5 | . . 5 Power 1 | . . 1 Propulsion 2 | . . 2 Utility . | . . . Weapon 2 | . . 2 Highest Loss Streak 5 | . . 5 To Critical Strikes . | . . . Average Slot Usage (%) 93 | . 95 84 Engine 10 | . 11 . Core 3 | . 2 13 Leg 21 | . 24 1 Hover 6 | . 3 25 Storage 14 | . 14 14 Processor 11 | . 11 14 Energy Gun 21 | . 22 14 Ballistic Gun 3 | . 4 . Naked Turns . | . . . Heaviest Build 14 | 10 14 12 Greatest Support 20 | 20 20 20 Greatest Overweight (x) 2 | 2 . 1 Average Overweight (x) . | . . . Largest Inventory Capacity 8 | 8 8 8 Average Capacity 7 | 7 8 8 Most Carried 8 | 5 8 8 Average Carried 7 | 3 7 7 Final Capacity 8 | 8 8 8 Final Carried 8 | 2 8 3 Class Distribution -------------------- 81% | Scavenger-Mutant 18% | Mutant Dominant Class ---------------- Scavenger-Mutant | -10/Materials Scavenger-Mutant | -10/Mines Resources | -11 -10 -10 ----------- Run | Jun Mat Min Matter Collected 479 | 214 265 . Remotely . | . . . Salvage Created 545 | . 545 . Parts 35 | . 35 . Haulers Intercepted . | . . . Recyclers Shooed 2 | . 2 . Parts Field Recycled . | . . . Retrieved Matter . | . . . Parts Self-Destructed . | . . . Prevented . | . . . Kills | -11 -10 -10 ------- Run | Jun Mat Min Combat Hostiles Destroyed 14 | . 14 . Guns 14 | . 14 . Classes Destroyed 4 | . 4 . Worker 1 | . 1 . Watcher 3 | . 3 . Swarmer 4 | . 4 . Grunt 10 | . 10 . Best Kill Streak 2 | . 2 . Combat Bots Only 2 | . 2 . Max Kills in Single Turn 1 | . 1 . Gunslinging . | . . . Exploded . | . . . Melee . | . . . Uniques/NPCs Destroyed . | . . . Combat | -11 -10 -10 -------- Run | Jun Mat Min Damage Taken 1032 | . 428 604 Core 283 | . 61 222 Absorbed by Shields . | . . . Core Remaining (%) 100 | 100 . . Volleys Fired 58 | . 53 5 Largest 2 | . 2 2 Hottest 100 | . 100 100 Shots Fired 113 | . 106 7 Gun 113 | . 106 7 Cannon . | . . . Launcher . | . . . Special . | . . . Kinetic 27 | . 27 . Thermal 86 | . 79 7 Explosive . | . . . Electromagnetic . | . . . Robot Hit Streak 10 | . 10 8 Robot Miss Streak 4 | . 4 . Penetration Max . | . . . Secondary Targets . | . . . Shots Hit Robots 65 | . 58 7 Core Hits 33 | . 33 . Critical Kills 1 | . 1 . Critical Parts Destroyed . | . . . Critical Strikes 2 | . 1 1 Burn 1 | . . 1 Destroy 1 | . 1 . Melee Attacks 1 | . 1 . Impact . | . . . Slashing 1 | . 1 . Piercing . | . . . Sneak Attacks . | . . . Combat Hostiles . | . . . Follow-up Attacks . | . . . Damage Inflicted 710 | . 622 88 Guns 710 | . 622 88 Cannons . | . . . Explosions . | . . . Melee . | . . . Ramming . | . . . Kinetic 124 | . 124 . Thermal 586 | . 498 88 Explosive . | . . . Electromagnetic . | . . . Impact . | . . . Slashing . | . . . Piercing . | . . . Highest Corruption 2 | . 2 2 Average Corruption 2 | . 2 2 Corruption Purged . | . . . Corruption Blocked . | . . . Effects 12 | . 10 2 Message Errors 1 | . 1 . Matter Fused 4 | . 4 . Heat Flow Errors 1 | . 1 . Energy Discharges 1 | . 1 . Parts Rejected 1 | . 1 . Data Loss (minor) 2 | . 1 1 Misfires 2 | . 1 1 Overload Shots . | . . . Overflow Damage . | . . . Projectiles . | . . . Explosions . | . . . Melee . | . . . Knockbacks . | . . . Impact . | . . . Kinetic . | . . . Secondary . | . . . Self-Inflicted Damage . | . . . Shots . | . . . Rammed . | . . . Targets Rammed . | . . . Kicked . | . . . Crushed . | . . . Highest Temperature 138 | . 138 69 Average Temperature 40 | . 41 34 Received Heat Transfer 177 | . 177 . Siege Activations . | . . . Robots Corrupted . | . . . Combat Hostiles . | . . . Parts Fried . | . . . Impact Corruptions . | . . . Robots Melted . | . . . Combat Hostiles . | . . . Parts Melted 4 | . 4 . Heat Transferred 1470 | . 1137 333 Parts Sabotaged . | . . . Parts Stolen . | . . . Parts Stripped . | . . . Power Chain Reactions . | . . . Missiles Intercepted . | . . . Alert | -11 -10 -10 ------- Run | Jun Mat Min Peak Influence 294 | . 294 79 Initial 79 | . . 79 Average 123 | . 136 75 Maximum Alert Level 1 | . 1 . Low Security (%) 90 | 100 88 100 Level 1 9 | . 11 . Level 2 . | . . . Level 3 . | . . . Level 4 . | . . . Level 5 . | . . . High Security . | . . . Max Security . | . . . Squads Dispatched 5 | . 5 . Investigation 2 | . 2 . Extermination . | . . . Reinforcement 3 | . 3 . Assault . | . . . Garrison . | . . . Intercept . | . . . Searches Triggered . | . . . Construction Impeded . | . . . Haulers Reinforced . | . . . Active Scanning Responses . | . . . Cargo Convoy Interrupts . | . . . Stealth | -11 -10 -10 --------- Run | Jun Mat Min Distress Signals 3 | . 3 . Communications Jammed . | . . . Distress Signals . | . . . Times Spotted 43 | . 33 10 Peak Tracking Total 5 | . 5 5 Tactical Retreats 9 | . 7 2 Traps | -11 -10 -10 ------- Run | Jun Mat Min Traps Triggered 2 | . 2 . Indirectly . | . . . Trap Hack Attempts . | . . . Triggered . | . . . Disarmed . | . . . Reprogrammed . | . . . Reused . | . . . Traps Extracted . | . . . Installed . | . . . Triggered . | . . . Machines | -11 -10 -10 ---------- Run | Jun Mat Min Machines Disabled . | . . . Max in Single Turn . | . . . Machines Repaired . | . . . Machines Sabotaged . | . . . Overloaded Fab Kills . | . . . Hacking | -11 -10 -10 --------- Run | Jun Mat Min Machines Accessed 7 | . 7 . Terminals 5 | . 5 . Fabricators . | . . . Repair Stations . | . . . Recycling Units 2 | . 2 . Scanalyzers . | . . . Garrison Access . | . . . Total Hacks 28 | . 28 . Successful 16 | . 16 . Failed 12 | . 12 . Catastrophic 1 | . 1 . Database Lockouts . | . . . Manual 11 | . 11 . Terminals 22 | . 22 . Fabricators . | . . . Repair Stations . | . . . Recycling Units 6 | . 6 . Scanalyzers . | . . . Garrison Access . | . . . Terminal Hacks 10 | . 10 . Prototype ID Bank 3 | . 3 . Alert Level 3 | . 3 . Unreport Threat 1 | . 1 . Locate Traps 3 | . 3 . Fabricator Hacks . | . . . Repair Station Hacks . | . . . Recycling Unit Hacks 2 | . 2 . Retrieve Components 2 | . 2 . Scanalyzer . | . . . Garrison Access Hacks . | . . . Unauthorized Hacks 4 | . 4 . Terminals 3 | . 3 . Botnet 3 | . 3 . Fabricators . | . . . Repair Stations . | . . . Recycling Units 1 | . 1 . Reject 1 | . 1 . Scanalyzers . | . . . Garrison Access . | . . . Data Cores Recovered . | . . . Used . | . . . Hacking Detections 6 | . 6 . Full Trace Events 1 | . 1 . Feedback Events . | . . . Feedback Blocked . | . . . Robot Schematics Acquired . | . . . Robots Built . | . . . Authchips . | . . . Time . | . . . Total Robot Build Rating . | . . . Part Schematics Acquired . | . . . Parts Built . | . . . Authchips . | . . . Time . | . . . Total Part Build Rating . | . . . Parts Repaired . | . . . Time . | . . . Parts Recycled . | . . . Recycled Matter . | . . . Retrieved Matter . | . . . Retrieved Components 10 | . 10 . Parts Scanalyzed . | . . . Part Schematics Acquired . | . . . Parts Damaged . | . . . Bothacking | -11 -10 -10 ------------ Run | Jun Mat Min Used RIF Installer . | . . . Robots Hacked . | . . . Non-combat . | . . . Combat . | . . . Robot Hacks Applied . | . . . Relay Couplers Released . | . . . Fabnet Peak Effective % . | . . . Robots Rewired . | . . . Allies Hacked . | . . . Hacks Repelled . | . . . Allies | -11 -10 -10 -------- Run | Jun Mat Min Total Allies . | . . . Largest Group . | . . . Highest-Rated Group . | . . . Highest-Rated Ally . | . . . Total Orders . | . . . Ally Attacks . | . . . Total Damage . | . . . Kills . | . . . Allies Corrupted . | . . . Allies Melted . | . . . Intel | -11 -10 -10 ------- Run | Jun Mat Min Robot Analysis Total . | . . . Derelict Logs Recovered 1 | . . 1 Drone Launches . | . . . Drone Recoveries . | . . . Exploration | -11 -10 -10 ------------- Run | Jun Mat Min Turns Passed 1246 | 46 1048 152 Spaces Moved 980 | 32 730 218 Core 18 | 18 . . Treads . | . . . Legs 557 | 14 542 1 Wheels . | . . . Hover 405 | . 188 217 Flight . | . . . Fastest Speed 50 | 50 56 56 Average Speed 93 | 102 103 57 Slowest Speed 150 | 150 120 120 Overloaded Moves . | . . . Propulsion Burnouts . | . . . Robots Hopped . | . . . Cave-ins Triggered 1 | . . 1 Exploration Rate (%) 56 | 3 98 67 Regions Visited 2 Branch Regions 1 Pre-discovered Areas . | . . . Known Exits Taken . | . . . Unknown Exits Taken 2 | 1 1 . Scrap Searched . | . . . Spaces Dug 1 | . 1 . Terrain Destroyed 1 | . 1 . Melee 1 | . 1 . Projectile . | . . . AOE . | . . . Terrain Rammed . | . . . Walls Destroyed . | . . . Machines Disabled . | . . . Actions | -11 -10 -10 --------- Run | Jun Mat Min Total 1208 | 44 925 239 Wait 100 | . 89 11 Move 978 | 31 729 218 Hop . | . . . Pick Up 22 | 7 15 . Fast Attach 5 | 1 4 . Attach 13 | 5 3 5 Detach 3 | . 3 . Swap 10 | . 10 . Drop 18 | . 18 . Fire 58 | . 53 5 Melee 1 | . 1 . Ram . | . . . Kick . | . . . Crush . | . . . Escape Stasis . | . . . Rewire . | . . . Trap . | . . . Miscellaneous . | . . . Route ------- -11/Junkyard -10/Materials (discovered 4 exits: [*Mat x3] / [*Min]) -10/Mines (discovered 1 exit: [*Mat]) History --------- Turn | Location | Event 5 | -11/Junkyard | Discovered new exit (range 15) 47 | -11/Junkyard | Entered Materials 274 | -10/Materials | Discovered new exit (range 13) 505 | -10/Materials | Discovered new exit (range 15) 524 | -10/Materials | Build established: Scavenger-Mutant 715 | -10/Materials | Discovered new exit (range 16) 978 | -10/Materials | Discovered new exit (range 14) 1095 | -10/Materials | Entered Mines 1125 | -10/Mines | Learned 2 Materials zone layouts 1128 | -10/Mines | Assembled infested the area 1133 | -10/Mines | Assisted by a Guerilla fighting off Assembled 1197 | -10/Mines | YI-UF0 nonchalantly dropped a Grenade Launcher on the ground 1219 | -10/Mines | Discovered new exit (range 8) 1233 | -10/Mines | Core integrity fell below 50% 1242 | -10/Mines | Core integrity fell below 20% 1248 | -10/Mines | Crushed by falling debris 1248 | -10/Mines | Smashed by cave-in Last Messages --------------- 01228_ The unstable cave ceiling collapses. 01228_ Hover Unit destroyed. 01229_ YI-UF0 mumbles something. 01229_ The unstable cave ceiling collapses. 01230_ Core Extractor disabled. 01230_ K-01 Serf destroyed. 01231_ System corrupted: Component data lost. 01231_ The unstable cave ceiling collapses. 01231_ Ion Engine crushed. 01231_ The unstable cave ceiling collapses. 01232_ YI-UF0 mumbles something. 01232_ Hover Unit destroyed. 01235_ Lgt. Nuclear Core destroyed. 01238_ The unstable cave ceiling collapses. 01239_ Med. Laser destroyed. 01240_ YI-UF0 suffers critical hit (Burn). 01241_ The unstable cave ceiling collapses. 01245_ Med. Laser destroyed. 01248_ The unstable cave ceiling collapses. 01248_ Crushed by falling debris. Map ----- +----------------------------------------------------+ | ????## ##??# #?# ## | | ???## ############ | | ???# ##???????# ## | | ??## ##??????# #### | | ??# #??????## ##??# | | ??# ##??????#######??## | | ??# """ #???????????##### | | ??## """ #??????????## | | #### """ ##?????????## | | # ##??????????# | | # ##???????###?# | | # ### ##?????## #### | | # #?## ####### ##### | | # #??## ] ## #??## | | # #???## #???## | | # #????## #????## | | # ###???# ##?????## | | # ##??## t ##???????### | | # ##?## #??????????? | | ## ### # ##?????????? | | ?# # #?????????? | | ?# < ## #?????????? | | ?## # ##????????? | | ??### g ! ####?????? | | ???# #% #?????? | | ???# @ # # ##?????? | | ??# # # ###??????? | | ??# # ## #????????# | | ??# #### #???????## | | ??# # #??# #####???# | | ??## "" # #?# #??## | | ???# ## #?## | | ???# ##### ### | | ???# r #???# ## | | ???##### ##???# | | ???????#### ##????# | | ??????????? ## a#????# | | ???????????# ##? #?? | | ????????????###?? ## | | ?????????????????? | | ???????????????? | | ?????????????? ## ##### | | ????????????? #?#######???? | | ?????????????? #????????????? | | ?????????????? ?????????????? | | ?????????????? ??????????????? | | ?????????????? ???????????????? | | ??????????????? ????????????????? | | ?????????????????????????????????? | | ?????????????????????????????????? | +----------------------------------------------------+ Best States ------------- Heat Dissipation 25 Energy Generation 14 Energy Capacity 160 Matter Stores 300 Matter Capacity 300 Sight Range 18 Terrain Scan Density 10 Evasion (%) 55 Item Schematics ----------------- None Robot Schematics ------------------ None Fabricated ------------ Nothing Alien Tech Used ----------------- None Achievements -------------- root@ Challenges ------------ None Game ------ Seed ClaymoresScatterWarhead Manual? 0 Play Time 00:28:46 Cumulative 99.8 hours Start 2023.05.24 @ 21:10:49 End 2023.05.24 @ 21:40:50 Sessions 2 Manual Loads 0 Difficulty Rogue Special Mode None Game No. 9 Rogue 7 Adventurer 0 Explorer 2 Win Type - Total 3 Types 0/0/0/3/0/0/0/0/0 Lore% 25 Gallery% 26 Achievement% 39 Wizard Run 0 Options --------- ASCII 0 Keyboard 0 Movement Mouse Keybinds 0 Fullscreen 1 Font 18/SmallcapsGlow Map View 70x50 Tactical HUD 1 Map Filters NONE Filters NONE Steam 1 RUN: 6dd1d6d3-62f9-4934-aede-e7526e8119cf